Cogmind - Beta 13 @@@ ROGUE MODE // 2024.04.11 @ 10:18:36 Player: m1m1c Result: Destroyed by WO-YDP(R) with Subdweller Machine Gun Performance ------------- Evolutions (0) 0 Regions Visited (3) 600 Robots Destroyed (19) 95 Value Destroyed (236) 236 Prototype IDs (0) 0 Alien Tech Used (0) 0 Bonus (0) 0 TOTAL SCORE: 931 Bonus ------- None Cogmind --------- Core Integrity 0/250 Matter 109/300 Energy 84/100 System Corruption 0% Temperature Cool (0) Movement Walking (120) Location -10/Subcaves Parts ------- > --- POWER (1) -------- (None) > --- PROPULSION (2) --- Carbon-fiber Leg > --- UTILITY (2) ------ Small Storage Unit Propulsion Shielding > --- WEAPON (2) ------- (None) > --- INVENTORY (8) ---- Wheel High-capacity Matter Pod (0) Sensor Array Sensor Array Core Shielding Weapon Shielding Autogun Peak State ------------ > --- POWER ------------ Light Ion Engine > --- PROPULSION ------- Aluminum Leg Aluminum Leg > --- UTILITY ---------- Small Storage Unit Signal Interpreter > --- WEAPON ----------- EM Pulse Gun Improved Light Cannon > --- INVENTORY -------- Wheel High-capacity Matter Pod Small Laser [Rating: 8] Favorites ----------- Power Light Ion Engine Engine Light Ion Engine Propulsion Aluminum Leg Leg Aluminum Leg Utility Small Storage Unit Storage Small Storage Unit Processor Signal Interpreter Protection Propulsion Shielding Weapon Improved Light Cannon Energy Gun EM Pulse Gun Ballistic Cannon Improved Light Cannon Launcher Grenade Launcher Build | -11 -10 -10 -10 ------- Run | Yrd Mat Min Sub Slots Evolved . | . . . . Power . | . . . . Propulsion . | . . . . Utility . | . . . . Weapon . | . . . . Parts Attached 14 | 6 5 1 2 Power 4 | 1 2 1 . Engine 4 | 1 2 1 . Core . | . . . . Reactor . | . . . . Propulsion 3 | 2 . . 1 Treads . | . . . . Leg 3 | 2 . . 1 Wheel . | . . . . Hover . | . . . . Flight . | . . . . Utility 3 | 1 1 . 1 Device . | . . . . Storage 1 | 1 . . . Processor 1 | . 1 . . Hackware . | . . . . Protection 1 | . . . 1 Artifact . | . . . . Weapon 4 | 2 2 . . Energy Gun 2 | 2 . . . Energy Cannon . | . . . . Ballistic Gun . | . . . . Ballistic Cannon 1 | . 1 . . Launcher 1 | . 1 . . Special Weapon . | . . . . Impact Weapon . | . . . . Slashing Weapon . | . . . . Piercing Weapon . | . . . . Special Melee Weapon . | . . . . Unidentified Prototypes . | . . . . Parts Lost 8 | . 2 1 5 Power 2 | . 1 . 1 Propulsion 2 | . . 1 1 Utility 1 | . . . 1 Weapon 3 | . 1 . 2 Highest Loss Streak 5 | . 2 1 5 To Critical Strikes . | . . . . Average Slot Usage (%) 91 | . 96 91 82 Engine 13 | . 13 14 13 Leg 22 | . 28 20 13 Storage 14 | . 14 14 14 Processor 13 | . 12 14 14 Energy Gun 3 | . 8 . . Ballistic Cannon 12 | . 10 14 13 Launcher 11 | . 7 14 13 Naked Turns . | . . . . Heaviest Build 15 | 11 15 15 15 Greatest Support 20 | 20 20 20 15 Greatest Overweight (x) 3 | 3 . 1 1 Average Overweight (x) . | . . . . Largest Inventory Capacity 8 | 8 8 8 8 Average Capacity 7 | 7 8 8 8 Most Carried 8 | 1 8 8 8 Average Carried 6 | . 4 7 7 Final Capacity 8 | 8 8 8 8 Final Carried 8 | 1 8 8 7 Class Distribution -------------------- 100% | Mutant Dominant Class ---------------- Mutant | -10/Materials Mutant | -10/Mines Mutant | -10/Subcaves Resources | -11 -10 -10 -10 ----------- Run | Yrd Mat Min Sub Matter Collected 399 | 228 113 58 . Remotely . | . . . . Salvage Created 189 | . 87 102 . Parts 33 | . 21 12 . Haulers Intercepted . | . . . . Recyclers Shooed 1 | . . 1 . Parts Field Recycled . | . . . . Retrieved Matter . | . . . . Parts Self-Destructed 9 | . . . 9 Prevented . | . . . . Kills | -11 -10 -10 -10 ------- Run | Yrd Mat Min Sub Combat Hostiles Destroyed 11 | . 9 2 . Guns 3 | . 3 . . Cannons 5 | . 4 1 . AOE 3 | . 2 1 . Classes Destroyed 5 | . 3 2 . Builder 5 | . 1 4 . Tunneler 2 | . . 2 . Watcher 1 | . 1 . . Swarmer 9 | . 9 . . Grunt 2 | . . 2 . Best Kill Streak 4 | . 4 4 . Combat Bots Only 3 | . 3 2 . Max Kills in Single Turn 3 | . 3 2 . Gunslinging . | . . . . Exploded 2 | . 2 1 . Melee . | . . . . Uniques/NPCs Destroyed . | . . . . Combat | -11 -10 -10 -10 -------- Run | Yrd Mat Min Sub Hostile Shots Fired 106 | . 82 7 17 Missed 28 | . 22 1 5 Damage Taken 974 | . 490 105 379 Core 256 | . 106 29 121 Absorbed by Shields . | . . . . Core Remaining (%) 100 | 100 . . . Volleys Fired 51 | . 21 29 1 Largest 2 | . 2 2 2 Hottest 79 | . 79 69 69 Shots Fired 73 | . 38 33 2 Gun 13 | . 13 . . Cannon 51 | . 21 29 1 Launcher 9 | . 4 4 1 Special . | . . . . Kinetic 51 | . 21 29 1 Thermal . | . . . . Explosive 9 | . 4 4 1 Electromagnetic 13 | . 13 . . Robot Hit Streak 7 | . 5 7 4 Robot Miss Streak 4 | . 3 4 . Penetration Max . | . . . . Secondary Targets . | . . . . Shots Hit Robots 34 | . 16 16 2 Core Hits 20 | . 11 9 . Critical Kills . | . . . . Critical Parts Destroyed . | . . . . Critical Strikes 1 | . 1 . . Blast 1 | . 1 . . Melee Attacks . | . . . . Impact . | . . . . Slashing . | . . . . Piercing . | . . . . Sneak Attacks . | . . . . Combat Hostiles . | . . . . Follow-up Attacks . | . . . . Damage Inflicted 1128 | . 494 545 89 Guns 89 | . 89 . . Cannons 542 | . 232 290 20 Explosions 494 | . 173 252 69 Melee . | . . . . Ramming 3 | . . 3 . Kinetic 542 | . 232 290 20 Thermal . | . . . . Explosive 494 | . 173 252 69 Electromagnetic 89 | . 89 . . Impact . | . . . . Slashing . | . . . . Piercing . | . . . . Highest Corruption . | . . . . Average Corruption . | . . . . Corruption Purged . | . . . . Corruption Blocked . | . . . . Overload Shots . | . . . . Overflow Damage 30 | . 15 15 . Projectiles 30 | . 15 15 . Explosions . | . . . . Melee . | . . . . Knockbacks 8 | . 1 6 1 Impact . | . . . . Kinetic 8 | . 1 6 1 Secondary . | . . . . Self-Inflicted Damage 66 | . 44 22 . Shots 3 | . 2 1 . Rammed . | . . . . Targets Rammed 1 | . . 1 . Kicked 1 | . . 1 . Crushed . | . . . . Highest Temperature 108 | . 108 54 . Average Temperature 40 | . 42 30 . Received Heat Transfer 69 | . 9 48 12 Siege Activations . | . . . . Robots Corrupted . | . . . . Combat Hostiles . | . . . . Parts Fried . | . . . . Impact Corruptions . | . . . . Robots Melted . | . . . . Combat Hostiles . | . . . . Parts Melted . | . . . . Heat Transferred . | . . . . Parts Sabotaged . | . . . . Parts Stolen . | . . . . Parts Stripped . | . . . . Power Chain Reactions . | . . . . Alert | -11 -10 -10 -10 ------- Run | Yrd Mat Min Sub Peak Influence 265 | . 265 121 . Initial 25 | . . 25 . Average 70 | . 98 53 . Maximum Alert Level 1 | . 1 . . Low Security (%) 97 | 100 93 100 . Level 1 2 | . 6 . . Level 2 . | . . . . Level 3 . | . . . . Level 4 . | . . . . Level 5 . | . . . . High Security . | . . . . Max Security . | . . . . Squads Dispatched . | . . . . Investigation . | . . . . Extermination . | . . . . Reinforcement . | . . . . Assault . | . . . . Garrison . | . . . . Intercept . | . . . . Searches Triggered . | . . . . Construction Impeded . | . . . . Haulers Reinforced . | . . . . Active Scanning Responses . | . . . . Cargo Convoy Interrupts . | . . . . Stealth | -11 -10 -10 -10 --------- Run | Yrd Mat Min Sub Distress Signals . | . . . . Communications Jammed . | . . . . Distress Signals . | . . . . Times Spotted 20 | . 11 2 7 Peak Tracking Total 6 | . 4 2 6 Tactical Retreats 1 | . 1 . . Traps | -11 -10 -10 -10 ------- Run | Yrd Mat Min Sub Traps Triggered . | . . . . Indirectly . | . . . . Trap Hack Attempts . | . . . . Triggered . | . . . . Disarmed . | . . . . Reprogrammed . | . . . . Reused . | . . . . Traps Extracted . | . . . . Installed . | . . . . Triggered . | . . . . Machines | -11 -10 -10 -10 ---------- Run | Yrd Mat Min Sub Machines Disabled 1 | . 1 . . Max in Single Turn 1 | . 1 . . Machines Repaired . | . . . . Machines Dismantled . | . . . . Machines Sabotaged . | . . . . Overloaded Fab Kills . | . . . . Hacking | -11 -10 -10 -10 --------- Run | Yrd Mat Min Sub Machines Accessed 2 | . 2 . . Terminals 1 | . 1 . . Fabricators . | . . . . Repair Stations . | . . . . Recycling Units 1 | . 1 . . Scanalyzers . | . . . . Garrison Access . | . . . . Total Hacks 6 | . 6 . . Successful 2 | . 2 . . Failed 4 | . 4 . . Catastrophic . | . . . . Database Lockouts . | . . . . Manual . | . . . . Terminals 2 | . 2 . . Fabricators . | . . . . Repair Stations . | . . . . Recycling Units 4 | . 4 . . Scanalyzers . | . . . . Garrison Access . | . . . . Terminal Hacks . | . . . . Fabricator Hacks . | . . . . Repair Station Hacks . | . . . . Recycling Unit Hacks 2 | . 2 . . Retrieve Matter 1 | . 1 . . Retrieve Components 1 | . 1 . . Scanalyzer . | . . . . Garrison Access Hacks . | . . . . Unauthorized Hacks . | . . . . Terminals . | . . . . Fabricators . | . . . . Repair Stations . | . . . . Recycling Units . | . . . . Scanalyzers . | . . . . Garrison Access . | . . . . Data Cores Recovered . | . . . . Used . | . . . . Hacking Detections 2 | . 2 . . Full Trace Events . | . . . . Feedback Events . | . . . . Feedback Blocked . | . . . . Robot Schematics Acquired . | . . . . Robots Built . | . . . . Authchips . | . . . . Time . | . . . . Total Robot Build Rating . | . . . . Part Schematics Acquired . | . . . . Parts Built . | . . . . Authchips . | . . . . Time . | . . . . Total Part Build Rating . | . . . . Parts Repaired . | . . . . Time . | . . . . Parts Recycled . | . . . . Recycled Matter . | . . . . Retrieved Matter . | . . . . Retrieved Components 2 | . 2 . . Parts Scanalyzed . | . . . . Part Schematics Acquired . | . . . . Parts Damaged . | . . . . Bothacking | -11 -10 -10 -10 ------------ Run | Yrd Mat Min Sub Used RIF Installer . | . . . . Robots Hacked . | . . . . Non-combat . | . . . . Combat . | . . . . Robot Hacks Applied . | . . . . Relay Couplers Released . | . . . . Fabnet Peak Effective % . | . . . . Robots Rewired . | . . . . Allies Hacked . | . . . . Hacks Repelled . | . . . . Allies | -11 -10 -10 -10 -------- Run | Yrd Mat Min Sub Total Allies . | . . . . Largest Group . | . . . . Highest-Rated Group . | . . . . Highest-Rated Ally . | . . . . Total Orders . | . . . . Ally Attacks . | . . . . Total Damage . | . . . . Kills . | . . . . Allies Corrupted . | . . . . Allies Melted . | . . . . Intel | -11 -10 -10 -10 ------- Run | Yrd Mat Min Sub Robot Analysis Total . | . . . . Derelict Logs Recovered 1 | . . . 1 Drone Launches . | . . . . Drone Recoveries . | . . . . Exploration | -11 -10 -10 -10 ------------- Run | Yrd Mat Min Sub Turns Passed 1278 | 80 503 505 190 Spaces Moved 817 | 59 358 299 101 Core 24 | 19 . . 5 Treads . | . . . . Legs 793 | 40 358 299 96 Wheels . | . . . . Hover . | . . . . Flight . | . . . . Fastest Speed 50 | 50 120 120 100 Average Speed 137 | 120 120 147 182 Slowest Speed 200 | 200 120 190 190 Overloaded Moves . | . . . . Propulsion Burnouts . | . . . . Robots Hopped . | . . . . Cave-ins Triggered . | . . . . Exploration Rate (%) 21 | 3 44 33 7 Regions Visited 3 Branch Regions 2 Pre-discovered Areas . | . . . . Known Exits Taken 2 | . 1 1 . Unknown Exits Taken 1 | 1 . . . Scrap Searched . | . . . . Spaces Dug . | . . . . Terrain Destroyed 53 | . 15 32 6 Melee . | . . . . Projectile 2 | . . 2 . AOE 51 | . 15 30 6 Terrain Rammed . | . . . . Walls Destroyed . | . . . . Machines Disabled . | . . . . Actions | -11 -10 -10 -10 --------- Run | Yrd Mat Min Sub Total 892 | 65 391 332 104 Wait . | . . . . Move 814 | 58 357 298 101 Hop . | . . . . Pick Up 9 | 1 7 1 . Fast Attach 10 | 6 3 . 1 Attach 1 | . . . 1 Detach . | . . . . Swap 3 | . 2 1 . Drop 3 | . 1 2 . Fire 51 | . 21 29 1 Melee . | . . . . Ram . | . . . . Kick 1 | . . 1 . Crush . | . . . . Escape Stasis . | . . . . Rewire . | . . . . Trap . | . . . . Miscellaneous . | . . . . Route ------- -11/Scrapyard -10/Materials (discovered 2 exits: *Min x2) -10/Mines (discovered 2 exits: *Mat / *Sub) -10/Subcaves History --------- Turn | Location | Event 20 | -11/Scrapyard | Discovered new exit (range 16) 81 | -11/Scrapyard | Entered Materials 81 | -10/Materials | Discovered new exit (range 14) 180 | -10/Materials | Identified exit to Mines 308 | -10/Materials | Build established: Mutant 445 | -10/Materials | Discovered exit to Mines (range 7) 584 | -10/Materials | Entered Mines 626 | -10/Mines | Discovered new exit (range 5) 630 | -10/Mines | Identified exit to Materials 690 | -10/Mines | Found a hidden stash of uninstalled traps 806 | -10/Mines | Core integrity fell below 50% 1060 | -10/Mines | Discovered new exit (range 5) 1086 | -10/Mines | Identified exit to Subcaves 1089 | -10/Mines | Entered Subcaves 1148 | -10/Subcaves | Learned Materials stockpile data 1218 | -10/Subcaves | A swath of the cavern ceiling suddenly collapsed 1236 | -10/Subcaves | Ambushed by swarm of Subdwellers 1267 | -10/Subcaves | Ambushed by Subdweller buried in earth 1273 | -10/Subcaves | Core integrity fell below 20% 1279 | -10/Subcaves | Destroyed by WO-YDP(R) with Subdweller Machine Gun Last Messages --------------- 7M-PZ0(h): "The Subs are coming!" 7F-5XL(R) knocked back. HV Slug penetrates Wall. HV Slug penetrates 7F-5XL(R). 7F-5XL(R) suffers critical hit (Destroy). Lgt. Ion Engine destroyed. Grenade Launcher destroyed. Imp. Light Cannon destroyed. Aluminum Leg destroyed. HV Slug penetrates 7F-5XL(R). 7F-5XL(R) suffers critical hit (Destroy). 7F-5XL(R) destroyed. HV Slug penetrates Wall. 0D-U90(R): "NAT20!" 7M-PZ0(h) destroyed. Signal Interpreter destroyed. Acquired Carbon-fiber Leg. WO-YDP(R) affixes Scrap Shield Fragment to Scrap Shield. Subatomizers dissect the Sub. Optics. Map ----- +----------------------------------------------------+ | ?????????????????????????????????????????????????? | | ?????????????????????????????????????????????????? | | ?????????????????????????????????????????????????? | | ?????????????????????????????????????????????????? | | ?????????????????????????????????????????????????? | | ?????????????????????????????????????????????????? | | ????? ##????????????????????????????????????????? | | ???? ????????????????????????????????????????? | | ???? ????????????????????????????????????????? | | ????? ????????????????????????????????????????? | | ????? #####???????????????????????????????????? | | ?????# #???????????????####????????????????? | | ?????# #?????????####??# ##???????????????? | | ####?# #???????### #### ##??????????????? | | # ## #???????# # ##??????????????? | | #???????# # #??????????????? | | ##??????# % ###????????????? | | ?# #??????# # ##????????????? | | ??# #???????# # ????????? | | ???# #???????# ##### ????????? | | ???????# ##??????# # #????#??????????? | | ???????## #??????# ;; #?????????????????? | | #??????## #??????# R R# #?????????????????? | | ###????# #######??## ![#### #????????????????? | | ##???# ##?# #### %!% #?? #???????????????? | | ##### #?# ## R%@ ##??? #??????????????? | | ### # R% &! #????? #?????????????? | | ## ##R ##?????? #?????????????? | | ## ####??????? ?????????????? | | ### R #?????????? #????????????? | | ###?# ## #????????????????????????? | | ##??# #### #????????????????????????? | | ###???## #??## ##????????????????????????? | | ???????### #???# ###?????????????????????????? | | ?????????###???#######???????????????????????????? | | ?????????????????????????????????????????????????? | | ?????????????????????????????????????????????????? | | ?????????????????????????????????????????????????? | | ?????????????????????????????????????????????????? | | ?????????????????????????????????????????????????? | | ?????????????????????????????????????????????????? | | ?????????????????????????????????????????????????? | | ?????????????????????????????????????????????????? | | ?????????????????????????????????????????????????? | | ?????????????????????????????????????????????????? | | ?????????????????????????????????????????????????? | | ?????????????????????????????????????????????????? | | ?????????????????????????????????????????????????? | | ?????????????????????????????????????????????????? | | | +----------------------------------------------------+ Best States ------------- Heat Dissipation 25 Energy Generation 10 Energy Capacity 125 Matter Stores 268 Matter Capacity 300 Sight Range 16 Terrain Scan Density 10 Evasion (%) 55 Item Schematics ----------------- None Robot Schematics ------------------ None Fabricated ------------ Nothing Alien Tech Used ----------------- None Achievements -------------- None Challenges ------------ None Game ------ Seed SurgeWarpBlaster Manual? 0 Play Time 00:08:58 Cumulative 9.1 hours Start 2024.04.11 @ 10:08:07 End 2024.04.11 @ 10:18:36 Sessions 1 Manual Loads 0 Difficulty Rogue Special Mode None Game No. 36 Rogue 36 Adventurer 0 Explorer 0 Win Type - Total 0 Types 0/0/0/0/0/0/0/0/0 Lore% 11 Gallery% 14 Achievement% 13 Wizard Run 0 Options --------- Layout 1 ASCII 1 Keyboard 0 Movement Arrows Keybinds 0 Fullscreen 1 Font 18/SmallcapsGlow Map View 50x40 Zoom Use 0% Tactical HUD 0 Map Filters NONE Filters NONE Steam 1 RUN: 7577e351-9aff-4d7b-a458-6b1bba9b3162